[Event "44th Chess Olympiad Open 2022"]
[Site "Chennai"]
[Date "2022.08.03"]
[Round "6.33"]
[White "Leon Archibaldo, Orlando Andres"]
[Black "Nyysti, Sampsa"]
[Result "0-1"]
[WhiteElo "2193"]
[BlackElo "2363"]
[Annotator "TA"]
[PlyCount "82"]
[EventDate "2022.??.??"]
[TimeControl "60"]

{[%evp 9,82,-24,3,-32,0,-15,-22,-22,-18,-23,-31,-29,-32,-54,-52,-93,-81,-97,
-96,-100,-100,-137,-122,-131,-100,-121,-119,-133,-97,-118,-108,-114,-95,-111,
-83,-77,-78,-113,-117,-124,-122,-158,-127,-122,-118,-178,-152,-189,-189,-184,
-187,-186,-191,-381,-176,-351,-342,-431,-408,-379,-385,-318,-291,-288,-185,
-437,-402,-426,-418,-485,-470,-1081,-1040,-988,-1004]} 1. d4 {[%emt 0:00:04]}
Nf6 {[%emt 0:00:04]} 2. Nc3 {[%emt 0:00:12]} d5 {[%emt 0:00:08]} 3. Bf4 {
[%emt 0:00:09]} a6 {[%emt 0:00:51]} 4. e3 {[%emt 0:00:30]} e6 {[%emt 0:00:27]}
5. Nf3 {[%emt 0:00:39]} c5 {[%emt 0:00:56]} 6. Bd3 {[%emt 0:01:56] D00:1 d4 d5:
Unusual lines.} Nc6 {[%emt 0:05:46]} 7. O-O {[%emt 0:01:01]} c4 {[%emt 0:00:00]
} 8. Be2 {[%emt 0:00:29] The position is equal.} b5 {[%emt 0:00:29]} 9. Ne5 {
[%emt 0:04:06]} Bb7 {[%emt 0:01:29]} 10. a3 {[%emt 0:04:54]} Bd6 {[%emt 0:00:
00]} 11. Bg3 {[%emt 0:11:39]} O-O {[%emt 0:10:57]} 12. f4 {[%emt 0:01:38] [#]}
Ne7 $146 {[%emt 0:00:00]} ({Predecessor:} 12... Nd7 13. Bf3 f6 14. Nxd7 Qxd7
15. e4 Ne7 16. Qd2 dxe4 17. Nxe4 Bd5 18. Nxd6 Qxd6 {½-½ (53) Stefanova, A 
(2489)-Kosintseva,T (2496) Khanty-Mansiysk 2014}) 13. Bf2 {[%emt 0:00:46]} Ne4
{[%emt 0:04:56]} 14. Nxe4 {[%emt 0:09:39]} dxe4 {[%emt 0:00:04]} 15. h3 {
[%emt 0:00:48]} Qc7 {[%emt 0:09:36]} 16. c3 {[%emt 0:07:08]} Bd5 {[%emt 0:00:
00]} 17. Qd2 {[%emt 0:06:48]} f6 {[%emt 0:02:58]} 18. Ng4 {[%emt 0:00:11]} Qc6
{[%emt 0:00:14]} 19. Bd1 {[%emt 0:05:10]} a5 {[%emt 0:01:11]} 20. Be1 {[%emt 0:
00:00]} Nf5 {[%emt 0:07:27]} 21. Nh2 {[%emt 0:01:13]} g6 {[%emt 0:01:06]} 22.
g4 {[%emt 0:02:10]} Ne7 {[%emt 0:00:14] Black is much more active.} 23. Bc2 {
[%emt 0:01:00]} Rf7 {[%emt 0:02:36]} 24. Qg2 {[%emt 0:04:43]} h6 {[%emt 0:00:
00]} 25. Rf2 {[%emt 0:08:37]} Rg7 {[%emt 0:07:49]} 26. Nf1 {[%emt 0:00:00]} Rf8
{[%emt 0:02:10]} 27. Nd2 {[%emt 0:00:45]} (27. Re2 $17) 27... f5 $19 {[%emt 0:
00:00]} 28. g5 {[%emt 0:00:23]} hxg5 {[%emt 0:00:25]} 29. Qxg5 {[%emt 0:01:05]}
Kf7 {[%emt 0:06:15] Hoping for ...Rh8.} 30. Nf1 {[%emt 0:06:19]} Rh8 {[%emt 0:
00:00]} 31. Rh2 $2 {[%emt 0:07:41]} (31. h4) 31... Ng8 {[%emt 0:01:07]} (31...
Rh5 $142 32. Qg2 g5) 32. Bd1 $2 {[%emt 0:02:41]} (32. h4 {was forced.}) 32...
Be7 {[%emt 0:00:28]} 33. Qg2 {[%emt 0:00:51]} g5 {[%emt 0:00:33]} 34. fxg5 {
[%emt 0:05:17]} Bxg5 {[%emt 0:00:07]} 35. Bg3 {[%emt 0:00:39]} Nf6 {[%emt 0:00:
00]} 36. Qf2 {[%emt 0:00:48] Inhibits f4.} Bh4 {[%emt 0:07:44] [#] ...Bxg3 is
the strong threat.} 37. Kh1 $2 {[%emt 0:00:51]} (37. Qf4) 37... Bxg3 {[%emt 0:
00:00]} 38. Nxg3 {[%emt 0:00:09]} Qc7 {[%emt 0:00:28]} 39. Nf1 {[%emt 0:01:16]}
f4 {[%emt 0:00:53][%cal Yf5f4,Yf4f3] Strongly threatening ...f3. Black is
clearly winning.} 40. Be2 {[%emt 0:01:01]} (40. Bg4 $142 f3 41. Rd1) 40... f3 {
[%emt 0:01:07] [#] White must now prevent ...Rgh7.} 41. Bd1 {[%emt 0:00:00]}
Rhg8 {[%emt 0:30:16] Weighted Error Value: White=0.51/Black=0.17 (very precise)
} 0-1

[Event "44th Chess Olympiad Open 2022"]
[Site "Chennai"]
[Date "2022.08.03"]
[Round "6.34"]
[White "Abdulwahhab, Ahmed Abdulsattar A"]
[Black "Tin, Jingyao"]
[Result "0-1"]
[WhiteElo "2251"]
[BlackElo "2552"]
[Annotator "TA"]
[PlyCount "120"]
[EventDate "2022.??.??"]
[TimeControl "60"]

{[%evp 19,120,27,29,36,98,81,85,95,99,101,130,138,237,244,250,246,264,253,252,
122,128,118,119,119,120,114,111,117,116,115,164,137,137,137,137,135,131,136,
141,125,129,132,140,138,125,111,124,125,125,127,133,145,202,195,253,252,230,
239,239,247,512,512,605,261,413,442,439,433,494,487,652,482,482,475,446,426,
409,406,359,-252,-250,-211,-196,-258,-196,-258,-258,-258,-225,-262,-262,-302,
-236,-392,-387,-385,-385,-368,-361,-1997,-1583,-4606,-2003]} 1. e4 {[%emt 0:00:
00]} e5 {[%emt 0:00:20]} 2. Nf3 {[%emt 0:00:08]} Nc6 {[%emt 0:00:08]} 3. Bb5 {
[%emt 0:01:02][%cal Yf1b5,Yb5a4,Ya4b3]} a6 {[%emt 0:00:26]} 4. Ba4 {[%emt 0:00:
07]} Nf6 {[%emt 0:00:18]} 5. O-O {[%emt 0:00:20]} b5 {[%emt 0:00:36]} 6. Bb3 {
[%emt 0:00:08]} Bc5 {[%emt 0:00:22]} 7. a4 {[%emt 0:01:23]} Rb8 {[%emt 0:01:58]
} 8. c3 {[%emt 0:02:01]} d6 {[%emt 0:00:47]} 9. d4 {[%emt 0:00:00]} Bb6 {
[%emt 0:00:20]} 10. axb5 {[%emt 0:02:15]} axb5 {[%emt 0:00:23]} 11. Na3 {
[%emt 0:00:36] C78: Ruy Lopez: Archangelsk and Möller Defences.} Ba6 {[%emt 0:
11:21]} ({Black should try} 11... exd4 $14 12. cxd4 (12. Nxb5 dxc3 13. Nxc3 O-O
$15) 12... Na5) 12. Re1 {[%emt 0:05:24]} O-O {[%emt 0:19:53]} 13. Bg5 {[%emt 0:
10:30] White is better.} h6 {[%emt 0:08:00] [#]} 14. Bh4 {[%emt 0:00:00] [#]}
Re8 $146 {[%emt 0:09:00]} ({Predecessor:} 14... b4 15. Nc2 Bc8 16. Ba4 Ne7 17.
dxe5 dxe5 18. Nxb4 Qxd1 19. Bxd1 Bb7 20. Nxe5 g5 {1-0 (29) Almasi,Z (2590)
-Zvjaginsev,V (2585) Wijk aan Zee 1995}) 15. Bd5 {[%emt 0:01:08]} Na7 {[%emt 0:
04:10]} (15... Bb7 $16) 16. Nc2 $18 {[%emt 0:05:09]} Bc8 {[%emt 0:00:00]} 17.
dxe5 {[%emt 0:01:16]} dxe5 {[%emt 0:00:35] [#]} 18. Nxe5 $1 {[%emt 0:00:00]}
Be6 {[%emt 0:00:17]} 19. Nc6 {[%emt 0:09:50]} (19. Nb4 $18 {is more deadly.})
19... Nxc6 $16 {[%emt 0:02:15]} 20. Bxc6 {[%emt 0:00:06]} Qxd1 {[%emt 0:00:55]}
21. Raxd1 {[%emt 0:01:13]} Red8 {[%emt 0:01:20]} 22. Nd4 {[%emt 0:02:32]
Against Bb3} g5 {[%emt 0:03:42]} 23. Nxe6 {[%emt 0:00:33]} fxe6 {[%emt 0:03:25]
} 24. Bg3 {[%emt 0:00:11]} Kf7 {[%emt 0:03:07]} (24... Nh5 $16) 25. b4 {
[%emt 0:08:05]} Nh5 {[%emt 0:14:15]} 26. Be5 {[%emt 0:00:57]} Nf4 {[%emt 0:00:
17]} 27. Bxb5 {[%emt 0:04:05] This bishop pair is nice.} Ng6 {[%emt 0:00:03]}
28. Bg3 {[%emt 0:00:44]} h5 {[%emt 0:00:06]} 29. h3 {[%emt 0:00:00]} h4 {
[%emt 0:00:04]} 30. Bh2 {[%emt 0:00:08]} Nf4 {[%emt 0:00:23]} 31. Bxf4 {
[%emt 0:06:14]} gxf4 {[%emt 0:00:05]} 32. Kf1 {[%emt 0:02:30]} c5 {[%emt 0:02:
38]} 33. Bc6 {[%emt 0:01:21]} cxb4 {[%emt 0:00:22]} 34. cxb4 {[%emt 0:00:07]}
Rbc8 {[%emt 0:04:56]} 35. b5 {[%emt 0:01:17]} Kf6 {[%emt 0:00:00]} (35... Kg6
$16 36. Ke2 Ba5) 36. e5+ $18 {[%emt 0:00:38][%cal Ye4e5,Ye5d6,Yd6d7]} Kf5 {
[%emt 0:01:45]} (36... Kf7 $142 37. Ke2 Rxd1 38. Rxd1 Rd8) 37. Be4+ {[%emt 0:
00:10]} Kg5 {[%emt 0:00:04]} 38. Rd6 {[%emt 0:00:34]} Rxd6 {[%emt 0:00:40]} 39.
exd6 {[%emt 0:00:07] Endgame Bf3 is the strong threat. KRB-KRB} Rc5 $2 {
[%emt 0:00:26]} (39... Kf6 40. Bc6 e5) 40. Bc6 {[%emt 0:01:03]} Kf6 {[%emt 0:
00:45]} 41. Rd1 {[%emt 0:33:18]} (41. Ra1 $142) 41... Rc2 {[%emt 0:01:01]} (
41... Rg5 {was necessary.} 42. Ke2 Rg8) 42. d7 {[%emt 0:00:00]} Bd8 {[%emt 0:
00:26]} 43. Rd4 {[%emt 0:00:00]} e5 {[%emt 0:00:00]} 44. Rd6+ {[%emt 0:00:00]}
Kf7 {[%emt 0:03:18]} 45. Rh6 {[%emt 0:00:00] Strongly threatening Rh8.} Rd2 {
[%emt 0:00:10]} 46. Rh8 {[%emt 0:00:00]} Bb6 {[%emt 0:00:26]} 47. Ke1 {[%emt 0:
00:00]} Rd4 {[%emt 0:01:12]} 48. Rxh4 {[%emt 0:00:00]} Ba5+ {[%emt 0:00:25]}
49. Ke2 $4 {[%emt 0:00:00]} (49. Kf1 $18) 49... f3+ $1 $19 {[%emt 0:00:08]
Discovered Attack} 50. Bxf3 {[%emt 0:00:00]} Rxh4 {[%emt 0:00:10]} 51. Bg4 {
[%emt 0:00:00]} (51. Bc6 {keeps fighting.}) 51... Rh8 {[%emt 0:01:32]} 52. Kd3
{[%emt 0:00:00]} (52. Bf3 {was called for.}) 52... Ke7 {[%emt 0:02:02]} 53. Ke4
{[%emt 0:00:00]} Bc7 {[%emt 0:04:19]} 54. Kd5 {[%emt 0:00:00]} Rh6 {[%emt 0:00:
25]} 55. g3 {[%emt 0:00:00]} Rb6 {[%emt 0:01:16]} 56. Kc5 $2 {[%emt 0:00:00]} (
56. f3) 56... Rd6 {[%emt 0:00:12] Hoping for ...Bb6+.} 57. f3 {[%emt 0:00:00]}
Bb6+ {[%emt 0:00:00]} 58. Kc4 {[%emt 0:00:00]} Bf2 {[%emt 0:00:54]} 59. f4 $2 {
[%emt 0:00:00]} (59. b6) 59... e4 {[%emt 0:00:46][%cal Ye5e4,Ye4e3]} 60. Bf5 {
[%emt 0:00:00]} e3 {[%emt 0:00:21] Weighted Error Value: White=0.59/Black=0.30}
0-1

[Event "44th Chess Olympiad Open 2022"]
[Site "Chennai"]
[Date "2022.08.03"]
[Round "6.34"]
[White "Ahmed, Ali Layth Ahmed"]
[Black "Gong, Qianyun"]
[Result "0-1"]
[WhiteElo "2249"]
[BlackElo "2275"]
[Annotator "TA"]
[PlyCount "62"]
[EventDate "2022.??.??"]
[TimeControl "60"]

{[%evp 9,62,22,42,40,43,38,36,18,20,17,20,-8,-15,-19,-20,-13,-12,-22,-20,-42,
-40,-74,-65,-108,-126,-183,-135,-141,-123,-191,-194,-192,-211,-355,-345,-326,
-345,-320,-308,-363,-352,-339,-354,-366,-345,-521,-516,-684,-679,-1072,-1025,
-976,-966,-901,-852]} 1. d4 {[%emt 0:00:05]} d5 {[%emt 0:00:06]} 2. c4 {
[%emt 0:01:49]} c6 {[%emt 0:00:06]} 3. Nf3 {[%emt 0:00:04]} Nf6 {[%emt 0:00:04]
} 4. e3 {[%emt 0:00:07]} e6 {[%emt 0:00:08]} 5. b3 {[%emt 0:00:12]} Ne4 {
[%emt 0:00:25]} 6. Bd3 {[%emt 0:03:03] D30: Queen's Gambit Declined: Systems
without Nc3.} Bb4+ {[%emt 0:02:25] 6...Bd6 is not played anymore.} 7. Nbd2 {
[%emt 0:03:04]} Nd7 {[%emt 0:00:55]} 8. O-O {[%emt 0:01:11] White is slightly
better.} f5 {[%emt 0:01:00]} 9. Bb2 {[%emt 0:05:08]} Qf6 {[%emt 0:02:56]} 10.
Bxe4 {[%emt 0:21:31]} fxe4 {[%emt 0:01:26]} 11. Ne5 {[%emt 0:00:20]} Nxe5 {
[%emt 0:12:25]} 12. dxe5 {[%emt 0:00:11]} Qh6 {[%emt 0:01:28] [#]} 13. a3 $146
{[%emt 0:08:32]} ({Predecessor:} 13. Qe2 O-O 14. Rad1 b6 15. f3 Ba6 16. fxe4 {
½-½ (16) Novik,M (2480)-Dokutchaev,A (2400) St Petersburg 1994}) 13... Be7 {
[%emt 0:01:42]} 14. Qe2 {[%emt 0:09:27]} O-O {[%emt 0:12:44]} 15. Rad1 {
[%emt 0:03:28]} b6 {[%emt 0:03:58]} 16. f3 {[%emt 0:08:54]} exf3 {[%emt 0:00:
00]} 17. gxf3 {[%emt 0:06:04]} (17. Rxf3 $17 Ba6 18. Rdf1) 17... Bb7 {[%emt 0:
00:00]} ({And not} 17... Bc5 18. Rfe1 $17) ({Black should try} 17... Ba6 $19
18. Kh1 Rad8) 18. cxd5 $17 {[%emt 0:07:50]} exd5 {[%emt 0:01:05][%cal Ye6d5,
Yd5d4]} 19. Kh1 {[%emt 0:04:18]} (19. Rf2 $17) 19... c5 $19 {[%emt 0:00:00]}
20. Rg1 {[%emt 0:03:17]} Bg5 {[%emt 0:09:52]} 21. Nf1 {[%emt 0:06:10]} (21. e4
{was worth a try.} d4 22. b4) 21... d4 {[%emt 0:01:39]} 22. e4 {[%emt 0:00:37]}
Rae8 {[%emt 0:00:21][%cal Ya8e8,Ye8e5,Ye5g5,Yg5f5]} 23. Ng3 {[%emt 0:03:14]}
Rxe5 {[%emt 0:00:21]} 24. Bc1 {[%emt 0:00:54]} Bxc1 {[%emt 0:03:42]} 25. Rxc1 {
[%emt 0:00:02]} Qf4 {[%emt 0:00:15]} 26. Rcf1 {[%emt 0:00:21]} h5 {[%emt 0:00:
48][%cal Yh7h5,Yh5h4]} 27. Qg2 {[%emt 0:01:34]} (27. Qd3 {was called for.})
27... Rg5 {[%emt 0:04:01] [#] Strongly threatening ...h4. Black is clearly
winning.} 28. Qf2 {[%emt 0:01:08]} h4 {[%emt 0:07:59]} 29. Nf5 {[%emt 0:01:29]}
Rfxf5 {[%emt 0:01:08]} 30. exf5 {[%emt 0:00:08]} Rxf5 {[%emt 0:00:06][%cal
Rf4f3]} 31. Rg6 {[%emt 0:00:59]} Bxf3+ {[%emt 0:02:28] Weighted Error Value:
White=0.51/Black=0.03 (flawless)} 0-1

[Event "44th Chess Olympiad Open 2022"]
[Site "Chennai"]
[Date "2022.08.03"]
[Round "6.34"]
[White "Wong, Zhenyong Jayden"]
[Black "Mohammed, Zozek Salah Mohamme"]
[Result "1/2-1/2"]
[WhiteElo "2163"]
[BlackElo "2232"]
[Annotator "TA"]
[PlyCount "99"]
[EventDate "2022.??.??"]
[TimeControl "60"]

{[%evp 20,99,89,89,77,62,71,63,57,0,0,0,14,0,58,-27,-25,-27,-36,-36,-36,-36,
-36,-36,-38,-40,-40,-33,0,0,0,0,0,0,0,0,20,24,180,25,30,0,0,0,11,0,0,0,49,0,0,
0,27,29,28,28,27,0,0,0,0,0,0,0,0,0,0,0,0,-8,0,0,0,0,34,34,57,57,70,69,64,58]} 
1. d4 {[%emt 0:00:03]} d5 {[%emt 0:00:08]} 2. c4 {[%emt 0:00:05]} e6 {[%emt 0:
00:00]} 3. Nf3 {[%emt 0:00:11]} Nf6 {[%emt 0:00:06]} 4. g3 {[%emt 0:00:03]} Be7
{[%emt 0:02:30]} 5. Bg2 {[%emt 0:00:06]} O-O {[%emt 0:00:11]} 6. O-O {[%emt 0:
00:00]} dxc4 {[%emt 0:01:05]} 7. Qc2 {[%emt 0:00:05]} a6 {[%emt 0:00:02]} 8. a4
{[%emt 0:00:09]} Nbd7 {[%emt 0:05:11]} 9. Nbd2 {[%emt 0:03:02]} c5 {[%emt 0:00:
00]} 10. Nxc4 {[%emt 0:02:13]} cxd4 {[%emt 0:04:45]} 11. Rd1 {[%emt 0:00:45]
White is more active. was the old line (11.Nxd4).} ({Resist} 11. Nxd4 Nb6 12.
Nxb6 Qxb6 $14) 11... Nd5 {[%emt 0:30:34] E05: Open Catalan: 5 Nf3 Be7.} 12.
Rxd4 {[%emt 0:04:00] [#]} Qc7 $146 {[%emt 0:03:53]} ({Predecessor:} 12... Bf6
13. Rd1 Qc7 14. Ng5 g6 15. Ne4 Bg7 16. Bd2 Rb8 17. Rac1 b6 18. Qb1 Qa7 19. Ne3
{1-0 (41) Peschel,A (2209)-Kobl,R (1711) Pfarrkirchen 2017}) 13. e4 {[%emt 0:
00:00]} Nb4 {[%emt 0:00:33]} 14. Qb3 {[%emt 0:20:12]} e5 {[%emt 0:07:05]
Prevents Bf4.} 15. Rd1 {[%emt 0:00:16]} a5 {[%emt 0:00:32]} 16. Be3 {[%emt 0:
00:00]} Ra6 {[%emt 0:08:30]} (16... Nc5 $1 $11 17. Bxc5 Bxc5) 17. Rd2 {[%emt 0:
00:00]} ({Better is} 17. Rac1 $14) 17... Rc6 $11 {[%emt 0:03:13]} 18. Bf1 {
[%emt 0:02:12]} Nc5 {[%emt 0:04:45][%cal Yd7c5,Yc5e4,Ye4d2,Yd2f1]} 19. Qd1 {
[%emt 0:07:05]} Nxe4 {[%emt 0:06:30]} (19... f6 {looks sharper.} 20. Bxc5 Bxc5
21. Na3 Bg4) 20. Nfxe5 {[%emt 0:00:12]} Nxd2 {[%emt 0:03:40]} 21. Nxc6 {
[%emt 0:00:12]} Nxf1 {[%emt 0:00:46]} 22. Nxe7+ {[%emt 0:00:09]} Qxe7 {[%emt 0:
00:00]} 23. Qxf1 {[%emt 0:00:51]} Nc2 {[%emt 0:00:13]} 24. Rc1 {[%emt 0:09:15]}
Nxe3 {[%emt 0:00:17]} 25. Nxe3 {[%emt 0:00:07]} Bd7 {[%emt 0:12:03]} 26. Rc7 {
[%emt 0:06:40]} Qd6 {[%emt 0:00:08]} 27. Rxb7 {[%emt 0:00:19]} Qc6 {[%emt 0:00:
00]} 28. Ra7 {[%emt 0:02:44]} Rc8 $2 {[%emt 0:00:49] [#]} (28... Qxa4 $11 29.
Qc4 Qxc4 30. Nxc4 Be6) 29. Rxa5 $2 {[%emt 0:07:10]} (29. Qd1 $1 $18 Be8 30. Nf5
(30. Rxa5 Qe4 $16)) 29... Qe4 {[%emt 0:00:18]} 30. h4 {[%emt 0:02:04]} Bc6 $1 {
[%emt 0:00:31][%csl Gc6][%cal Re4h1]} 31. Kh2 {[%emt 0:00:22] Prevents Qh1+.}
Rb8 {[%emt 0:00:33]} 32. Qg2 {[%emt 0:02:16] aiming for Qxe4.} Qe8 {[%emt 0:00:
00]} 33. Nd5 $1 {[%emt 0:02:05][%cal Yd5e7]} Kh8 {[%emt 0:00:00]} (33... Rxb2
$11 34. Ra7 Bxd5 35. Qxd5 Rxf2+ 36. Kh3 Qc8+ 37. Qd7 Qxd7+ 38. Rxd7 h5) 34. Rc5
{[%emt 0:00:46]} (34. b4 $1 $14 {was preferrable.}) 34... Rxb2 {[%emt 0:00:23]}
35. Nf6 {[%emt 0:00:44]} Bxg2 {[%emt 0:01:36]} 36. Nxe8 {[%emt 0:00:03]} Rxf2 {
[%emt 0:00:10] Endgame KRB-KRN} 37. Kg1 {[%emt 0:00:49]} Ra2 {[%emt 0:00:21]}
38. Rc8 {[%emt 0:01:15][%cal Re8f6] [#]} (38. Nd6 $5 {[%cal Rc5c8]} g6 39.
Nxf7+ Kg7 40. Ng5 $14) 38... g6 {[%emt 0:00:21]} 39. g4 {[%emt 0:00:40]} Bh3 {
[%emt 0:00:11]} 40. Ra8 {[%emt 0:00:31] Intending Nf6+ and mate.} h6 {[%emt 0:
01:23]} 41. Nf6+ {[%emt 0:07:20]} Kg7 {[%emt 0:00:13]} 42. Ne8+ {[%emt 0:00:09]
} Kf8 {[%emt 0:01:20] Hoping for ...Ke7.} 43. Nf6+ {[%emt 0:01:31]} Ke7 {
[%emt 0:19:59]} 44. Ng8+ {[%emt 0:00:19]} Ke6 {[%emt 0:00:00]} 45. Re8+ {
[%emt 0:01:30]} Kd5 {[%emt 0:05:14]} 46. Re3 {[%emt 0:04:03]} Bxg4 {[%emt 0:05:
56] ...h5 is the strong threat.} 47. Nf6+ {[%emt 0:00:07] White is slightly
better.} Kc6 {[%emt 0:00:31]} 48. Nxg4 {[%emt 0:00:19]} Rxa4 {[%emt 0:00:15]}
49. Nxh6 {[%emt 0:04:02]} Rxh4 {[%emt 0:00:11]} 50. Nxf7 {[%emt 0:00:08]
Weighted Error Value: White=0.17 (very precise) /Black=0.16 (very precise)}
1/2-1/2

[Event "44th Chess Olympiad Open 2022"]
[Site "Chennai"]
[Date "2022.08.03"]
[Round "6.35"]
[White "Fluvia Poyatos, Jordi"]
[Black "Khusenkhojaev, Mustafokhuja"]
[Result "1-0"]
[WhiteElo "2451"]
[BlackElo "2238"]
[Annotator "TA"]
[PlyCount "61"]
[EventDate "2022.??.??"]
[TimeControl "60"]

{[%evp 17,61,8,4,0,-8,-9,18,6,14,0,0,-12,-12,-12,-12,-3,0,-11,0,2,11,22,11,15,
10,22,14,20,8,8,72,70,249,259,578,550,2385,2314,29990,29991,29991,29992,29994,
29995,29998,29999]} 1. e4 {[%emt 0:00:05]} e5 {[%emt 0:00:09]} 2. Nf3 {[%emt 0:
00:00]} Nc6 {[%emt 0:00:10]} 3. d4 {[%emt 0:00:16]} exd4 {[%emt 0:00:57]} 4.
Nxd4 {[%emt 0:00:11]} Nf6 {[%emt 0:01:07]} 5. Nxc6 {[%emt 0:00:37]} bxc6 {
[%emt 0:00:09]} 6. Bd3 {[%emt 0:00:30]} d5 {[%emt 0:00:29]} 7. exd5 {[%emt 0:
00:00]} cxd5 {[%emt 0:00:11]} 8. O-O {[%emt 0:00:18]} Be7 {[%emt 0:00:13]} 9.
c4 {[%emt 0:00:23]} O-O {[%emt 0:00:19] The main line 9...0-0 scores better
than 9...d4.} 10. Nc3 {[%emt 0:00:58] C45: Scotch Game.} d4 {[%emt 0:00:18]}
11. Ne4 {[%emt 0:01:13]} Ng4 {[%emt 0:00:18]} 12. Bf4 {[%emt 0:05:48] The
position is equal.} f5 $1 {[%emt 0:01:35]} 13. Ng3 {[%emt 0:01:00] [#]} g5 $146
{[%emt 0:02:28]} ({Predecessor:} 13... g6 14. h3 Nf6 15. Re1 Bd6 16. Bh6 c5 17.
Bxf8 Kxf8 18. Qd2 a5 19. Qg5 Kf7 {½-½ (63) Puntier Andujar,W (2312)
-Tomashevsky,E (2730) Istanbul 2012}) 14. Bd2 {[%emt 0:00:40][%cal Yg3f5] [#]
Threatens to win with Nxf5!} Ne5 {[%emt 0:00:21]} 15. Qe2 {[%emt 0:06:18]} Nxd3
{[%emt 0:02:59]} 16. Qxd3 {[%emt 0:00:09]} f4 {[%emt 0:01:20]} 17. Ne4 {
[%emt 0:02:52]} c5 {[%emt 0:02:56]} (17... a5 {feels hotter.} 18. c5 Bb7 19.
Rfe1 Qd5) 18. a3 {[%emt 0:11:58]} a5 {[%emt 0:02:00] Prevents b4.} 19. b4 $1 {
[%emt 0:01:20]} axb4 {[%emt 0:03:18]} 20. axb4 {[%emt 0:00:08]} Rxa1 {[%emt 0:
00:00]} 21. Rxa1 {[%emt 0:00:06]} cxb4 {[%emt 0:03:07]} 22. Ra7 {[%emt 0:03:42]
} Bf5 {[%emt 0:20:58] Hoping for ...Bc5.} 23. c5 {[%emt 0:02:44]} Kh8 {[%emt 0:
00:00]} (23... Rf7 $11 {remains equal.}) 24. Bxb4 $16 {[%emt 0:13:30] White is
more active.} Re8 $2 {[%emt 0:05:47] Black cannot hold the game after this.} ({
Black should play} 24... Bf6 $14) 25. f3 $18 {[%emt 0:02:32] And now Qc4 would
win.} g4 $2 {[%emt 0:20:15]} (25... Bf6 {is more resistant.} 26. Qc4 Be5) 26.
Qc4 {[%emt 0:09:33] Ba5 is the strong threat.} gxf3 {[%emt 0:04:05]} 27. Ba5 {
[%emt 0:02:16] [#] Deflection} ({Not} 27. Nd6 Bxd6 28. cxd6 Qf6 $14) 27... Qc8
{[%emt 0:11:25]} 28. Qxd4+ {[%emt 0:00:32] White mates.} Kg8 {[%emt 0:00:00]}
29. Bc3 {[%emt 0:01:51][%csl Gc3][%cal Rd4g7]} f2+ {[%emt 0:00:00]} 30. Kf1 {
[%emt 0:00:51][%csl Gc3][%cal Rd4g7]} Kf7 {[%emt 0:00:14]} 31. Qf6+ {[%emt 0:
30:30] Weighted Error Value: White=0.01 (flawless) /Black=0.69} 1-0